fUSD/lending_fUSD_20260406
["ID","MTS","AMOUNT","RATE_DAILY","PERIOD"]
[419911819,1775500232251,-500.0,0.00013698,2]
[419911820,1775500232260,-500.0,0.00013698,2]
[419911821,1775500232270,-150.0,0.00013699,2]
[419911822,1775500232279,-350.68525213,0.00013699,2]
[419911829,1775500237595,-1982.20474787,0.00013699,2]
[419911830,1775500237606,-166.66,0.00013699,2]
[419911831,1775500237615,-280.65,0.00013704,2]
[419911832,1775500237625,-166.66,0.00013836,2]
[419911833,1775500237641,-166.66,0.00013973,2]
[419911834,1775500237650,-200.0,0.00013978,2]
[419911835,1775500237660,-280.65,0.00013978,2]
[419911836,1775500237670,-152.0,0.00013989,4]
[419911837,1775500237680,-500.0,0.00014,2]
[419911838,1775500237691,-150.0,0.00014056,2]
[419911839,1775500237701,-150.0,0.00014056,2]
[419911840,1775500237711,-222.15775247,0.00014056,2]
[419911841,1775500237720,-1435.74153958,0.00014072,2]
[419911842,1775500237730,-1300.0,0.00014082,2]
[419911843,1775500237740,-3000.0,0.00014082,2]
[419911844,1775500237750,-160.0,0.00014084,2]
[419911845,1775500237759,-160.0,0.00014084,2]
[419911846,1775500237769,-166.66,0.0001411,2]
[419911847,1775500237779,-500.0,0.00014114,2]
[419911849,1775500238299,-500.47003133,0.00014133,2]
[419911850,1775500238333,-500.0,0.00014133,2]
[419911851,1775500238342,-166.66,0.00014247,2]
[419911852,1775500238352,-280.65,0.00014252,2]
[419911853,1775500238360,-2332.89,0.00014384,2]
[419911854,1775500238370,-166.66,0.00014384,2]
[419911855,1775500238379,-2351.0,0.00014384,2]
[419911856,1775500238388,-1573.0,0.000144,2]
[419911857,1775500238397,-162.0,0.000144,2]
[419911858,1775500238406,-1573.0,0.000144,2]
[419911859,1775500238415,-1573.0,0.000144,2]
[419911860,1775500238425,-150.0,0.000144,2]
[419911861,1775500238434,-150.0,0.000144,2]
[419911862,1775500238444,-150.0,0.000144,2]
[419911863,1775500238453,-150.0,0.000144,2]
[419911864,1775500238462,-150.0,0.000144,2]
[419911865,1775500238471,-150.0,0.000144,2]
[419911866,1775500238480,-222.7793,0.00014441,2]
[419911867,1775500238491,-5113.602,0.00014441,2]
[419911868,1775500238500,-4151.2258,0.00014441,2]
[419911869,1775500238509,-150.0,0.0001448,2]
[419911870,1775500238518,-1263.0,0.0001448,2]
[419911871,1775500238527,-1217.0,0.0001448,2]
[419911872,1775500238536,-925.0,0.0001448,2]
[419911873,1775500238546,-3771.0,0.0001448,2]
[419911874,1775500238554,-2471.0,0.0001448,2]
[419911875,1775500238564,-220.566361,0.00014526,2]
[419911876,1775500238573,-280.69,0.00014526,2]
[419911877,1775500238582,-501.90683054,0.00014548,2]
[419911878,1775500238591,-162.0,0.0001472,2]
[419911879,1775500238600,-578.20924308,0.00014863,2]
[419911880,1775500238610,-500.0,0.00014863,2]
[419911881,1775500238620,-695.39793187,0.00014863,2]
[419911882,1775500238630,-396.0429306,0.00014863,2]
[419911883,1775500238639,-1377.42282659,0.00014863,2]
[419911884,1775500238649,-200.0,0.00014863,2]
[419911885,1775500238658,-151.0,0.00014863,2]
[419911886,1775500238667,-187.2355,0.000149,2]
[419911887,1775500238676,-500.0,0.00014918,2]
[419911888,1775500238685,-151.0,0.00014918,2]
[419911889,1775500238695,-500.0,0.00014973,2]
[419911890,1775500238704,-151.0,0.00014973,2]
[419911891,1775500238714,-152.0,0.0001498,5]
[419911892,1775500238723,-150.0,0.00015,7]
[419911893,1775500238732,-150.0,0.00015,7]
[419911894,1775500238742,-300.0,0.00015,2]
[419911895,1775500238751,-500.0,0.00015028,2]
[419911896,1775500238760,-151.0,0.00015028,2]
[419911897,1775500238770,-2811.0,0.0001504,2]
[419911898,1775500238779,-2000.0,0.00015058,2]
[419911899,1775500238788,-500.0,0.00015058,2]
[419911900,1775500238798,-500.0,0.00015058,2]
[419911901,1775500238807,-2332.89,0.00015068,2]
[419911902,1775500238816,-260.4,0.00015068,2]
[419911903,1775500238825,-151.0,0.00015083,2]
[419911904,1775500238835,-800.0,0.000151,5]
[419911905,1775500238844,-430.95881578,0.00015114,2]
[419911906,1775500238853,-500.0,0.00015127,3]
[419911907,1775500238863,-456.726093,0.0001519,2]
[419911908,1775500238872,-187.528784,0.0001519,7]
[419911909,1775500238881,-381.937299,0.0001519,7]
[419911910,1775500238890,-189.010323,0.0001519,2]
[419911911,1775500238900,-252.249329,0.0001519,7]
[419911912,1775500238911,-1311.204456,0.000152,2]
[419911913,1775500238920,-1600.0,0.000152,5]
[419911914,1775500238929,-5000.0,0.000152,2]
[419911915,1775500238939,-5000.0,0.000152,2]
[419911916,1775500238947,-350.0,0.00015248,2]
[419911917,1775500238957,-2500.0,0.000153,5]
[419911918,1775500238966,-162.0,0.0001536,2]
[419911919,1775500238975,-232.77668291,0.00015362,2]
[419911920,1775500238984,-153.79322456,0.00015362,2]
[419911921,1775500238993,-160.0,0.00015369,7]
[419911922,1775500239003,-194.605339,0.00015369,7]
[419911923,1775500239012,-229.210679,0.00015369,7]
[419911924,1775500239021,-7312.98545163,0.00015399,2]
[419911925,1775500239030,-2500.0,0.000154,2]
[419911926,1775500239040,-3300.0,0.000154,5]
[419911927,1775500239049,-1449.94109353,0.000154,2]
[419911928,1775500239057,-3764.63921625,0.00015411,2]
[419911929,1775500239067,-1428.38747117,0.00015411,2]
[419911930,1775500239077,-200.0,0.00015411,2]
[419911931,1775500239086,-482.0,0.00015424,2]
[419911932,1775500239095,-1379.0,0.00015424,2]
[419911933,1775500239104,-1300.0,0.00015452,2]
[419911934,1775500239114,-3000.0,0.00015452,2]
[419911935,1775500239123,-7312.98545156,0.00015455,2]
[419911936,1775500239132,-3764.63921625,0.00015465,2]
[419911937,1775500239142,-772.45,0.00015471,2]
[419911938,1775500239151,-4021.56,0.00015471,2]
[419911939,1775500239160,-1449.94109349,0.00015471,2]
[419911940,1775500239169,-500.0,0.00015473,2]
[419911941,1775500239178,-500.0,0.00015499,2]
[419911942,1775500239188,-323.24561816,0.00015499,2]
[419911943,1775500239197,-500.0,0.00015499,2]
[419911944,1775500239206,-500.0,0.00015499,2]
[419911945,1775500239216,-500.0,0.00015499,2]
[419911946,1775500239225,-500.0,0.00015499,2]
[419911947,1775500239234,-500.0,0.00015499,2]
[419911948,1775500239243,-500.0,0.00015499,2]
[419911949,1775500239252,-500.0,0.00015499,2]
[419911950,1775500239262,-500.0,0.00015499,2]
[419911951,1775500239271,-500.0,0.00015499,2]
[419911952,1775500239281,-500.0,0.00015499,2]
[419911953,1775500239290,-500.0,0.00015499,2]
[419911954,1775500239300,-500.0,0.00015499,2]
[419911955,1775500239308,-283.21149692,0.00015499,2]
[419911956,1775500239318,-500.0,0.00015499,2]
[419911957,1775500239327,-500.0,0.00015499,2]
[419911958,1775500239336,-500.0,0.00015499,2]
[419911959,1775500239345,-500.0,0.00015499,2]
[419911960,1775500239354,-500.0,0.00015499,2]
[419911961,1775500239363,-500.0,0.00015499,2]
[419911962,1775500239372,-500.0,0.00015499,2]
[419911963,1775500239381,-500.0,0.00015499,2]
[419911964,1775500239390,-500.0,0.00015499,2]
[419911965,1775500239399,-500.0,0.00015499,2]
[419911966,1775500239408,-500.0,0.00015499,2]
[419911967,1775500239418,-500.0,0.00015499,2]
[419911968,1775500239428,-500.0,0.00015499,2]
[419911969,1775500239437,-500.0,0.00015499,2]
[419911970,1775500239447,-500.0,0.00015499,2]
[419911971,1775500239456,-500.0,0.00015499,2]
[419911972,1775500239465,-500.0,0.00015499,2]
[419911973,1775500239474,-500.0,0.00015499,2]
[419911974,1775500239483,-500.0,0.00015499,2]
[419911975,1775500239492,-500.0,0.00015499,2]
[419911976,1775500239502,-500.0,0.00015499,2]
[419911977,1775500239511,-500.0,0.00015499,2]
[419911979,1775500239521,-500.0,0.00015499,2]
[419911981,1775500239530,-500.0,0.00015499,2]
[419911982,1775500239539,-500.0,0.00015499,2]
[419911983,1775500239548,-200.0,0.00015499,2]
[419911984,1775500239557,-500.0,0.00015499,2]
[419911985,1775500239566,-500.0,0.00015499,2]
[419911986,1775500239575,-500.0,0.00015499,2]
[419911987,1775500239585,-500.0,0.00015499,2]
[419911988,1775500239594,-530.03,0.00015499,2]
[419911989,1775500239603,-1336.85232053,0.000155,3]
[419911990,1775500239612,-197061.2407,0.000155,2]
[419911991,1775500239622,-4100.0,0.000155,5]
[419911992,1775500239631,-4000.0,0.00015507,2]
[419911993,1775500239640,-350.0,0.00015507,4]
[419911994,1775500239649,-7312.98545156,0.0001551,2]
[419911995,1775500239658,-3764.63921625,0.0001552,2]
[419911996,1775500239667,-1449.94109349,0.00015543,2]
[419911997,1775500239676,-200.0,0.00015562,2]
[419911998,1775500239686,-200.0,0.00015562,2]
[419911999,1775500239695,-200.0,0.00015562,2]
[419912000,1775500239704,-7312.98545156,0.00015566,2]
[419912001,1775500239714,-3764.63921625,0.00015574,2]
[419912003,1775500239724,-800.0,0.000156,5]
[419912004,1775500239732,-1449.94109349,0.00015614,2]
[419912006,1775500239742,-7312.98545156,0.00015622,2]
[419912007,1775500239751,-3764.63921625,0.00015628,2]
[419912009,1775500239760,-7312.98545156,0.00015677,2]
[419912011,1775500239769,-162.0,0.0001568,2]
[419912012,1775500239779,-2190.8488589,0.0001568,2]
[419912014,1775500239788,-1147.02746987,0.0001568,2]
[419912015,1775500239797,-1052.16473476,0.0001568,2]
[419912016,1775500239806,-1121.44854192,0.0001568,2]
[419912017,1775500239815,-1013.54820508,0.0001568,2]
[419912018,1775500239824,-1137.50542955,0.0001568,2]
[419912019,1775500239833,-1046.702739,0.0001568,2]
[419912020,1775500239842,-1128.18042249,0.0001568,2]
[419912021,1775500239851,-1047.87021253,0.0001568,2]
[419912022,1775500239860,-1031.47868986,0.0001568,2]
[419912023,1775500239869,-1125.96625511,0.0001568,2]
[419912024,1775500239878,-1036.45889744,0.0001568,2]
[419912025,1775500239887,-1043.30906806,0.0001568,2]
[419912026,1775500239896,-1100.93769258,0.0001568,2]
[419912027,1775500239906,-1013.17047211,0.0001568,2]
[419912028,1775500239915,-1022.37165318,0.0001568,2]
[419912029,1775500239924,-1037.05730747,0.0001568,2]
[419912030,1775500239933,-1084.39881819,0.0001568,2]
[419912031,1775500239943,-1898.01421719,0.0001568,2]
[419912032,1775500239952,-3764.63921625,0.00015683,2]
[419912033,1775500239962,-500.0,0.000157,2]
[419912034,1775500239971,-500.0,0.000157,2]
[419912035,1775500239980,-500.0,0.000157,2]
[419912036,1775500239989,-500.0,0.000157,2]
[419912037,1775500239999,-500.0,0.000157,2]
[419912038,1775500240008,-500.0,0.000157,2]
[419912039,1775500240017,-500.0,0.000157,2]
[419912040,1775500240026,-353.46905355,0.000157,2]
[419912041,1775500240035,-800.0,0.000157,5]
[419912042,1775500240044,-2000.0,0.000157,2]
[419912043,1775500240054,-1442.0,0.00015712,2]
[419912044,1775500240063,-5067.6971966,0.00015714,2]
[419912045,1775500240072,-1000.0,0.00015726,2]
[419912046,1775500240080,-1442.0,0.0001573,2]
[419912047,1775500240090,-1000.0,0.00015731,2]
[419912048,1775500240099,-1000.0,0.00015732,2]
[419912049,1775500240108,-7312.98545156,0.00015733,2]
[419912050,1775500240118,-3764.63921625,0.00015737,2]
[419912051,1775500240127,-1000.0,0.00015739,2]
[419912052,1775500240136,-150.0,0.00015742,2]
[419912053,1775500240146,-299.57987113,0.00015753,2]
[419912054,1775500240155,-2332.89,0.00015753,2]
[419912055,1775500240164,-1000.0,0.0001576,2]
[419912056,1775500240173,-150.0,0.00015762,2]
[419912057,1775500240182,-4228.144,0.00015771,2]
[419912058,1775500240191,-256.29,0.00015771,2]
[419912059,1775500240200,-1000.0,0.00015772,2]
[419912060,1775500240209,-483.87,0.00015778,2]
[419912061,1775500240219,-483.87,0.00015778,2]
[419912062,1775500240228,-483.87,0.00015778,2]
[419912063,1775500240238,-483.87,0.00015778,2]
[419912064,1775500240247,-483.86,0.00015778,2]
[419912065,1775500240257,-150.0,0.00015787,2]
[419912066,1775500240266,-7312.98545156,0.00015789,2]
[419912067,1775500240275,-1000.0,0.0001579,2]
[419912068,1775500240284,-5000.0,0.0001579,2]
[419912069,1775500240293,-5692.42989957,0.00015791,2]
[419912070,1775500240302,-3764.63921625,0.00015791,2]
[419912071,1775500240312,-150.0,0.00015795,2]
[419912072,1775500240321,-156.8971398,0.00015796,2]
[419912073,1775500240330,-153.79322456,0.00015798,2]
[419912074,1775500240340,-160.03037794,0.00015798,2]
[419912075,1775500240349,-306.0,0.000158,2]
[419912076,1775500240358,-1000.0,0.000158,2]
[419912077,1775500240368,-800.0,0.000158,5]
[419912078,1775500240376,-313.0,0.000158,2]
[419912079,1775500240386,-2000.0,0.000158,2]
[419912080,1775500240395,-2000.0,0.000158,2]
[419912081,1775500240404,-1000.0,0.00015807,2]
[419912082,1775500240414,-1000.0,0.00015809,2]
[419912083,1775500240423,-5692.42989953,0.00015813,2]
[419912084,1775500240433,-1000.0,0.00015813,2]
[419912085,1775500240443,-1000.0,0.00015817,2]
[419912086,1775500240452,-160.03037794,0.00015818,2]
[419912087,1775500240461,-150.0,0.00015821,2]
[419912088,1775500240471,-484.0,0.00015822,2]
[419912089,1775500240480,-1000.0,0.00015827,2]
[419912090,1775500240489,-5692.42989953,0.00015835,2]
[419912091,1775500240498,-25000.0,0.00015838,3]
[419912092,1775500240507,-160.03037794,0.00015839,2]
[419912093,1775500240517,-3389.5786,0.0001584,2]
[419912094,1775500240526,-7312.98545156,0.00015844,2]
[419912095,1775500240535,-3764.63921625,0.00015846,2]
[419912096,1775500240544,-25000.0,0.00015847,3]
[419912097,1775500240554,-1000.0,0.00015851,2]
[419912098,1775500240563,-1000.0,0.00015855,2]
[419912099,1775500240572,-25000.0,0.00015856,3]
[419912100,1775500240581,-5692.42989953,0.00015856,2]
[419912101,1775500240590,-1442.0,0.00015857,2]
[419912102,1775500240600,-1000.0,0.00015858,2]
[419912103,1775500240609,-160.03037794,0.00015859,2]
[419912104,1775500240618,-1000.0,0.00015862,2]
[419912105,1775500240627,-25000.0,0.00015865,3]
[419912106,1775500240636,-500.0,0.00015871,2]
[419912107,1775500240646,-200.0,0.00015871,2]
[419912108,1775500240655,-500.0,0.00015872,2]
[419912109,1775500240664,-500.0,0.00015872,2]
[419912110,1775500240675,-500.0,0.00015872,2]
[419912111,1775500240684,-200.0,0.00015872,2]
[419912112,1775500240694,-25000.0,0.00015874,3]
[419912113,1775500240703,-5692.42989953,0.00015878,2]
[419912114,1775500240712,-160.03037794,0.0001588,2]
[419912115,1775500240722,-25000.0,0.00015882,3]
[419912116,1775500240731,-150.0,0.00015883,2]
[419912117,1775500240741,-1442.0,0.00015884,2]
[419912118,1775500240750,-500.0,0.00015886,2]
[419912119,1775500240760,-1000.0,0.00015888,2]
[419912120,1775500240769,-500.0,0.00015889,2]
[419912121,1775500240778,-500.0,0.00015889,2]
[419912122,1775500240787,-500.0,0.00015889,2]
[419912123,1775500240796,-500.0,0.00015889,2]
[419912124,1775500240806,-500.0,0.00015889,2]
[419912125,1775500240815,-500.0,0.00015889,2]
[419912126,1775500240825,-500.0,0.00015889,2]
[419912127,1775500240834,-500.0,0.00015889,2]
[419912128,1775500240843,-605.52482469,0.00015889,2]
[419912129,1775500240853,-500.0,0.00015889,2]
[419912130,1775500240863,-500.0,0.00015889,2]
[419912131,1775500240872,-500.0,0.00015889,2]
[419912132,1775500240881,-500.0,0.00015889,2]
[419912133,1775500240890,-500.0,0.00015889,2]
[419912134,1775500240900,-500.0,0.00015889,2]
[419912135,1775500240910,-492.58089965,0.00015889,2]
[419912136,1775500240918,-500.0,0.00015889,2]
[419912137,1775500240928,-500.0,0.00015889,2]
[419912138,1775500240937,-500.0,0.00015889,2]
[419912139,1775500240946,-500.0,0.00015889,2]
[419912140,1775500240956,-264.49213527,0.00015889,2]
[419912141,1775500240966,-1332.9612991,0.00015889,2]
[419912142,1775500240975,-500.0,0.0001589,2]
[419912143,1775500240984,-500.0,0.0001589,2]
[419912144,1775500240994,-500.0,0.0001589,2]
[419912145,1775500241003,-500.0,0.0001589,2]
[419912146,1775500241012,-500.0,0.0001589,2]
[419912147,1775500241022,-500.0,0.0001589,2]
[419912148,1775500241031,-500.0,0.0001589,2]
[419912149,1775500241041,-231286.73675988,0.0001589,2]
[419912172,1775500242760,-802.19962445,0.0001589,2]
[419912173,1775500242787,-49893.4752637,0.0001589,2]
[419912174,1775500243025,-590.03930427,0.00012761,2]
[419912175,1775500243035,-1205.0,0.00015499,2]
[419912176,1775500243046,-1264.0,0.00015499,2]
[419912178,1775500243056,-304.11380504,0.0001588,2]
[419912180,1775500243066,-1218017.58835197,0.0001589,2]
[419912182,1775500243075,-2000.0,0.0001589,2]
[419912184,1775500243085,-25000.0,0.00015891,3]
[419912186,1775500243094,-4000.0,0.00015895,2]
[419912188,1775500243103,-1000.0,0.000159,2]
[419912190,1775500243113,-160.03037794,0.000159,2]
[419912192,1775500243122,-1421.77954853,0.000159,2]
[419912194,1775500243132,-25000.0,0.000159,3]
[419912196,1775500243142,-3764.63921625,0.000159,2]
[419912198,1775500243152,-453.94719217,0.000159,2]
[419912200,1775500243162,-453.9471921,0.000159,2]
[419912202,1775500243172,-453.9471921,0.000159,2]
[419912204,1775500243181,-453.9471921,0.000159,2]
[419912206,1775500243192,-453.9471921,0.000159,2]
[419912208,1775500243201,-453.9471921,0.000159,2]
[419912210,1775500243211,-800.0,0.000159,5]
[419912212,1775500243220,-453.9471921,0.000159,2]
[419912214,1775500243230,-453.9471921,0.000159,2]
[419912216,1775500243239,-453.9471921,0.000159,2]
[419912218,1775500243249,-453.9471921,0.000159,2]
[419912220,1775500243259,-453.9471921,0.000159,2]
[419912222,1775500243269,-453.9471921,0.000159,2]
[419912224,1775500243278,-453.9471921,0.000159,2]
[419912226,1775500243288,-453.9471921,0.000159,2]
[419912228,1775500243298,-453.9471921,0.000159,2]
[419912229,1775500243308,-453.9471921,0.000159,2]
[419912230,1775500243318,-453.9471921,0.000159,2]
[419912231,1775500243327,-453.9471921,0.000159,2]
[419912232,1775500243337,-453.9471921,0.000159,2]
[419912233,1775500243351,-453.9471921,0.000159,2]
[419912234,1775500243361,-7312.98545156,0.000159,2]
[419912235,1775500243371,-1343.57958434,0.000159,2]
[419912236,1775500243381,-19859.15643998,0.000159,2]
[419912237,1775500243390,-5692.42989953,0.000159,2]
[419912238,1775500243400,-595.09712739,0.000159,2]
[419912239,1775500243409,-2000.0,0.000159,2]
[419912240,1775500243419,-803.0,0.000159,5]
[419912241,1775500243429,-635.0,0.000159,5]
[419912242,1775500243440,-2000.0,0.000159,2]
[419912243,1775500243450,-1000.0,0.00015901,2]
[419912244,1775500243459,-1000.0,0.00015903,2]
[419912245,1775500243469,-1000.0,0.00015908,2]
[419912246,1775500243479,-1000.0,0.00015909,2]
[419912247,1775500243489,-500.0,0.00015909,2]
[419912248,1775500243498,-1000.0,0.00015916,2]
[419912249,1775500243508,-150.0,0.00015923,2]
[419912250,1775500243517,-250.0,0.00015923,2]
[419912251,1775500243527,-1000.0,0.00015933,2]
[419912252,1775500243537,-1000.0,0.00015936,2]
[419912253,1775500243546,-1000.0,0.00015944,2]
[419912254,1775500243556,-1000.0,0.00015949,2]
[419912255,1775500243565,-1000.0,0.00015949,2]
[419912256,1775500243574,-1000.0,0.00015949,2]
[419912257,1775500243584,-1000.0,0.00015949,2]
[419912258,1775500243593,-1000.0,0.00015949,2]
[419912259,1775500243603,-1000.0,0.00015949,2]
[419912260,1775500243612,-1000.0,0.00015949,2]
[419912261,1775500243622,-1000.0,0.00015949,2]
[419912262,1775500243631,-1000.0,0.00015949,2]
[419912263,1775500243641,-1000.0,0.00015949,2]
[419912264,1775500243650,-1000.0,0.00015949,2]
[419912265,1775500243659,-398.985,0.00015949,2]
[419912266,1775500243669,-207.602769,0.0001595,2]
[419912267,1775500243678,-173.607863,0.0001595,7]
[419912268,1775500243688,-1442.0,0.00015953,2]
[419912269,1775500243698,-570.79309048,0.00015956,2]
[419912270,1775500243707,-1000.0,0.00015959,2]
[419912271,1775500243717,-1481.23780761,0.00015959,2]
[419912272,1775500243726,-200.0,0.00015959,2]
[419912273,1775500243736,-287.42148692,0.0001596,2]
[419912274,1775500243746,-150.0,0.00015964,2]
[419912275,1775500243756,-1000.0,0.00015965,2]
[419912276,1775500243766,-1000.0,0.00015969,2]
[419912277,1775500243775,-152.0,0.00015971,6]
[419912278,1775500243785,-259.86957341,0.00015971,5]
[419912279,1775500243795,-6572.2547606,0.00015972,2]
[419912280,1775500243804,-11661.8484166,0.00015972,2]
[419912281,1775500243813,-41586.701176,0.00015972,2]
[419912282,1775500243823,-9161.5135339,0.00015972,2]
[419912283,1775500243832,-500.0,0.00015973,2]
[419912284,1775500243842,-286.46237648,0.00015973,2]
[419912285,1775500243851,-500.0,0.00015973,2]
[419912286,1775500243860,-500.2985009,0.00015973,2]
[419912287,1775500243870,-500.0,0.00015973,2]
[419912288,1775500243879,-500.0,0.00015973,2]
[419912289,1775500243888,-500.0,0.00015973,2]
[419912290,1775500243898,-623.42048552,0.00015973,2]
[419912291,1775500243907,-337.84455229,0.00015973,2]
[419912292,1775500243916,-500.0,0.00015973,2]
[419912293,1775500243926,-500.0,0.00015973,2]
[419912294,1775500243935,-501.7767113,0.00015973,2]
[419912295,1775500243946,-500.0,0.00015973,2]
[419912296,1775500243955,-500.25654321,0.00015973,2]
[419912297,1775500243965,-500.0,0.00015973,2]
[419912298,1775500243974,-500.0,0.00015973,2]
[419912299,1775500243984,-500.0,0.00015973,2]
[419912300,1775500243993,-500.0,0.00015973,2]
[419912301,1775500244002,-500.0,0.00015973,2]
[419912302,1775500244012,-500.0,0.00015973,2]
[419912303,1775500244022,-500.0,0.00015973,2]
[419912304,1775500244031,-500.0,0.00015973,2]
[419912305,1775500244040,-500.0,0.00015973,2]
[419912306,1775500244049,-500.0,0.00015973,2]
[419912307,1775500244058,-500.96410238,0.00015973,2]
[419912308,1775500244068,-500.0,0.00015973,2]
[419912309,1775500244077,-500.0,0.00015973,2]
[419912310,1775500244086,-500.0,0.00015973,2]
[419912311,1775500244095,-561.18350506,0.00015973,2]
[419912312,1775500244104,-501.64853068,0.00015973,2]
[419912313,1775500244114,-150.0,0.00015985,2]
[419912314,1775500244123,-1000.0,0.00015988,2]
[419912315,1775500244132,-1000.0,0.00015988,2]
[419912316,1775500244141,-1000.0,0.00015988,2]
[419912317,1775500244150,-1000.0,0.00015988,2]
[419912318,1775500244160,-1000.0,0.00015988,2]
[419912319,1775500244169,-1000.0,0.00015988,2]
[419912320,1775500244178,-1000.0,0.00015988,2]
[419912321,1775500244187,-266.452,0.00015988,2]
[419912322,1775500244197,-304.11380504,0.0001599,2]
[419912323,1775500244206,-304.11380504,0.0001599,2]
[419912324,1775500244215,-151.0,0.00015997,2]
[419912325,1775500244224,-151.0,0.00015997,2]
[419912326,1775500244233,-1000.0,0.00015997,2]
[419912327,1775500244243,-666.0,0.00015999,2]
[419912328,1775500244252,-1240.41933555,0.00015999,5]
[419912329,1775500244261,-150.0,0.00015999,2]
[419912330,1775500244270,-500.0,0.00015999,2]
[419912331,1775500244279,-500.0,0.00015999,2]
[419912332,1775500244289,-500.0,0.00015999,2]
[419912333,1775500244299,-500.0,0.00015999,2]
[419912334,1775500244308,-500.0,0.00015999,2]
[419912335,1775500244317,-500.0,0.00015999,2]
[419912336,1775500244327,-500.0,0.00015999,2]
[419912337,1775500244336,-500.0,0.00015999,2]
[419912338,1775500244345,-500.0,0.00015999,2]
[419912339,1775500244355,-500.0,0.00015999,2]
[419912340,1775500244364,-500.0,0.00015999,2]
[419912341,1775500244373,-500.0,0.00015999,2]
[419912342,1775500244381,-500.0,0.00015999,2]
[419912343,1775500244391,-500.0,0.00015999,2]
[419912344,1775500244400,-500.0,0.00015999,2]
[419912345,1775500244409,-500.0,0.00015999,2]
[419912346,1775500244418,-500.0,0.00015999,2]
[419912347,1775500244427,-500.0,0.00015999,2]
[419912348,1775500244436,-500.0,0.00015999,2]
[419912349,1775500244446,-500.0,0.00015999,2]
[419912350,1775500244456,-500.0,0.00015999,2]
[419912351,1775500244466,-500.0,0.00015999,2]
[419912352,1775500244475,-500.0,0.00015999,2]
[419912353,1775500244484,-500.0,0.00015999,2]
[419912354,1775500244494,-500.0,0.00015999,2]
[419912355,1775500244503,-500.0,0.00015999,2]
[419912356,1775500244512,-500.0,0.00015999,2]
[419912357,1775500244522,-500.0,0.00015999,2]
[419912358,1775500244531,-520.24272845,0.00015999,2]
[419912359,1775500244540,-150.0,0.00015999,2]
[419912360,1775500244549,-230.53339563,0.00015999,2]
[419912361,1775500244559,-1433447.0238638,0.00016,2]
[419912362,1775500244568,-307542.62577664,0.00016,2]
[419912363,1775500244581,-3693.67181145,0.00016,2]
[419912370,1775500245438,-151.0,0.00013466,2]
[419912372,1775500245448,-13383.47722678,0.00016,2]
[419912374,1775500245459,-42743.5,0.00016,2]
[419912381,1775500245667,-93.39886415,0.00014452,2]
[419912382,1775500245707,-321.60113585,0.00014452,2]
[419912383,1775500245716,-1449.94109349,0.00015686,2]
[419912384,1775500245726,-3014.0515548,0.00015885,2]
[419912385,1775500245735,-1269.0,0.0001589,2]
[419912386,1775500245745,-1024.0,0.0001589,2]
[419912387,1775500245754,-10565.14107993,0.00016,2]
[419912388,1775500245792,-2667.88970174,0.00016,2]
[419912389,1775500245808,-545.6360174,0.00016,2]
[419912390,1775500246131,-61920.90411064,0.00016,2]
[419912391,1775500246143,-450.60654917,0.00016,2]
[419912392,1775500246204,-549.74487618,0.000154,2]
[419912393,1775500246216,-450.25512382,0.000154,2]
[419912394,1775500246226,-889.51192225,0.00016,2]